bitfinex/quotes_ETHUSD_20260120
["timestamp","ask_amount","ask_price","bid_price","bid_amount"]
[1768942355537,3.33511205,2998.4,2997.0,0.9665872]
[1768942355697,0.98638711,2998.2,2997.1,0.9665872]
[1768942356515,0.001,2998.5,2997.1,0.9665872]
[1768942356516,0.98638711,2998.4,2997.1,0.9665872]
[1768942358125,0.96831988,2998.3,2997.1,0.9665872]
[1768942358655,0.96831988,2998.3,2997.2,0.9353158]
[1768942358806,0.96831988,2998.3,2997.1,3.33655652]
[1768942358807,0.96831988,2998.3,2997.4,0.9353158]
[1768942364131,0.96831988,2998.2,2997.1,0.9353158]
[1768942366346,0.96831988,2998.2,2997.0,0.54]
[1768942366545,0.96831988,2998.2,2997.0,1.45146601]
[1768942366841,0.96678052,2998.0,2997.1,0.91146601]
[1768942367734,0.96678052,2998.0,2997.3,0.91346601]
[1768942368631,0.96678052,2998.0,2997.3,0.002]
[1768942370350,0.96778052,2998.2,2997.3,0.002]
[1768942370718,0.96678052,2998.1,2997.3,0.002]
[1768942371017,0.96678052,2997.9,2997.3,0.002]
[1768942371235,0.96678052,2997.9,2997.0,1.45346601]
[1768942371550,0.96678052,2997.9,2997.1,0.91146601]
[1768942372230,0.96678052,2997.9,2997.0,0.91346601]
[1768942373364,0.96678052,2997.8,2997.0,0.002]
[1768942373565,0.96678052,2997.6,2997.0,0.002]
[1768942374527,0.96678052,2997.6,2996.9,0.91346601]
[1768942374757,1.00028052,2997.6,2996.9,0.91346601]
[1768942375137,0.0335,2997.6,2996.9,0.91346601]
[1768942375521,0.0335,2997.6,2997.0,5.26475835]
[1768942375756,0.0335,2997.6,2997.1,0.91146601]
[1768942376063,0.96678052,2998.1,2997.3,0.91146601]
[1768942376262,0.96778052,2998.2,2997.5,0.91146601]
[1768942377937,0.96778052,2998.2,2997.3,0.5090188]
[1768942378722,0.96778052,2998.2,2997.2,5.26475835]
[1768942378723,0.001,2998.2,2997.8,0.5090188]
[1768942379039,0.001,2998.2,2997.8,0.47592356]
[1768942380051,0.001,2998.5,2997.9,0.47592356]
[1768942380254,0.001,2999.4,2997.9,0.47592356]
[1768942380255,0.96678052,2999.0,2997.9,0.47592356]
[1768942380462,1.59988052,2999.0,2997.9,0.47592356]
[1768942380672,0.96678052,2999.0,2998.1,0.47592356]
[1768942382742,0.96678052,2998.9,2997.6,0.47592356]
[1768942382943,0.96678052,2998.9,2997.8,0.47592356]
[1768942383873,0.96678052,2998.9,2997.4,0.47592356]
[1768942384037,0.96678052,2998.7,2997.4,0.47592356]
[1768942384238,0.96678052,2998.5,2997.4,0.47592356]
[1768942384769,0.96678052,2998.5,2997.4,3.81214274]
[1768942385069,0.96678052,2998.5,2997.5,0.47592356]
[1768942385273,0.96678052,2998.5,2997.6,0.47592356]
[1768942386150,0.7705703,2999.0,2997.6,0.47592356]
[1768942386355,0.96678052,2998.9,2997.6,0.47592356]
[1768942387966,0.96678052,2998.9,2997.7,0.47592356]
[1768942388973,0.96678052,2998.9,2997.8,0.47592356]
[1768942389577,0.96678052,2998.8,2997.6,0.47592356]
[1768942389780,0.96678052,2998.6,2997.6,0.47592356]
[1768942390280,0.96678052,2998.6,2997.7,0.47592356]
[1768942390479,0.96678052,2998.6,2997.8,0.47592356]
[1768942390860,0.96678052,2999.0,2997.8,0.47592356]
[1768942391072,0.96678052,2998.8,2997.8,0.47592356]
[1768942391450,0.96678052,2998.8,2997.6,0.47592356]
[1768942392053,0.96678052,2998.8,2997.7,0.47592356]
[1768942392778,0.96678052,2998.8,2997.9,0.47592356]
[1768942393203,0.96678052,2998.6,2997.9,0.47592356]
[1768942398974,0.96678052,2998.6,2997.8,0.002]
[1768942399300,0.96678052,2998.6,2997.8,0.47792356]
[1768942400205,0.96678052,2998.6,2997.8,0.002]
[1768942401316,0.96678052,2998.6,2997.8,0.47792356]
[1768942405284,0.96678052,2998.6,2998.0,0.47792356]
[1768942407812,0.96678052,2998.6,2998.0,0.002]
[1768942409528,0.96678052,2998.6,2998.0,0.47792356]
[1768942410032,0.91495843,2998.7,2998.2,0.47592356]
[1768942410349,1.08479208,2998.7,2998.0,0.002]
[1768942410500,1.08479208,2998.7,2998.0,0.47792356]
[1768942411193,1.08479208,2998.7,2998.0,0.002]
[1768942411713,0.91395843,2998.4,2997.8,0.002]
[1768942414828,0.91395843,2998.4,2997.8,0.00037416]
[1768942415130,0.91395843,2998.2,2997.8,0.00037416]
[1768942416904,0.91395843,2998.2,2998.0,0.002]
[1768942417106,0.91395843,2998.2,2998.0,0.00037423]
[1768942418624,0.94975843,2998.2,2998.0,0.00037423]
[1768942419691,0.94975843,2998.2,2997.5,0.002]
[1768942420309,0.94975843,2998.2,2997.5,0.47792356]
[1768942420510,0.94975843,2998.2,2997.5,0.002]
[1768942420743,0.94975843,2998.2,2997.5,0.47792356]
[1768942424932,0.0358,2998.2,2997.6,0.47592356]
[1768942425739,0.0358,2998.2,2997.5,0.5762374]
[1768942425740,0.0358,2998.2,2997.8,5.26245043]
[1768942425934,0.0358,2998.2,2997.6,5.26245043]
[1768942426125,0.0358,2998.2,2997.7,0.54]
[1768942426326,0.94249108,2998.2,2997.7,0.54]
[1768942426639,0.0358,2998.2,2997.7,0.54]
[1768942426817,0.94249108,2998.2,2997.7,0.54]
[1768942427521,0.0358,2998.2,2997.7,0.54]
[1768942427727,0.94249108,2998.2,2997.7,0.54]
[1768942428129,0.0358,2998.2,2997.7,0.54]
[1768942429640,0.0358,2998.2,2997.7,0.542]
[1768942429835,0.001,2998.0,2997.7,0.542]
[1768942430010,0.001,2998.0,2997.7,1.18004989]
[1768942430212,0.90769108,2998.0,2997.7,0.542]
[1768942430640,0.001,2998.0,2997.7,0.542]
[1768942430803,0.90669108,2997.9,2997.5,0.5762374]
[1768942431132,0.001,2998.0,2997.5,0.002]
[1768942431705,0.001,2998.0,2997.6,5.26226151]
[1768942431900,0.001,2998.0,2997.6,5.84268766]
[1768942432137,0.001,2998.0,2997.6,0.58042615]
[1768942432446,0.001,2998.0,2997.5,0.002]
[1768942433338,0.90769108,2998.0,2997.5,0.002]
[1768942435845,0.90769108,2998.0,2997.5,0.0003739]
[1768942437846,0.90669108,2997.8,2997.0,0.002]
[1768942438011,0.61689526,2997.7,2997.2,5.26226151]
[1768942438211,0.90669108,2997.8,2997.2,5.26226151]
[1768942439243,0.90669108,2997.8,2997.3,0.54]
[1768942439409,0.90669108,2997.8,2997.3,1e-08]
[1768942439611,0.90669108,2997.8,2997.1,0.54]
[1768942439810,0.001,2998.0,2997.2,5.26226151]
[1768942439811,0.90769108,2998.0,2997.2,5.26226151]
[1768942440440,0.90769108,2998.0,2997.0,5.26426151]
[1768942440643,0.90669108,2997.7,2997.0,5.26426151]
[1768942440840,0.90669108,2997.7,2997.1,1.06662615]
[1768942441259,0.90669108,2997.7,2997.3,0.002]
[1768942441549,0.90669108,2997.7,2997.0,0.002]
[1768942442714,0.90669108,2997.7,2997.2,5.26226151]
[1768942442941,0.0368,2997.8,2997.2,5.26226151]
[1768942443336,0.94349108,2997.8,2997.2,5.26226151]
[1768942444342,0.94349108,2997.8,2997.0,5.26426151]
[1768942445728,0.94349108,2997.8,2997.0,6.17857652]
[1768942447857,0.94349108,2997.8,2997.2,5.26226151]
[1768942448346,0.0368,2997.8,2997.4,5.26226151]
[1768942448648,0.90669108,2998.4,2997.6,5.26226151]
[1768942450445,0.90669108,2998.4,2997.4,5.26226151]
[1768942450764,0.90669108,2998.4,2997.5,0.54]
[1768942451334,0.90669108,2998.3,2997.5,0.54]
[1768942451750,0.90669108,2998.3,2997.3,0.54]
[1768942452047,0.90669108,2998.3,2997.0,0.91631501]
[1768942452254,0.90669108,2998.3,2997.1,0.54]
[1768942452550,0.90669108,2998.1,2997.1,0.54]
[1768942452749,0.90669108,2997.9,2997.1,0.54]
[1768942453226,0.90669108,2997.9,2997.0,0.002]
[1768942453545,0.90669108,2997.9,2997.0,0.542]
[1768942453751,0.90669108,2997.9,2997.2,0.002]
[1768942455324,0.97975901,2997.7,2997.2,0.00037051]
[1768942457477,0.97975901,2997.7,2996.9,0.002]
[1768942457632,0.97975901,2997.6,2996.9,0.002]
[1768942457834,0.97975901,2997.5,2996.9,0.002]
[1768942458029,0.97975901,2997.3,2996.9,0.002]
[1768942458226,0.97975901,2997.1,2996.6,0.002]
[1768942458460,0.97975901,2996.9,2996.3,0.002]
[1768942459027,0.97975901,2996.9,2996.4,0.006]
[1768942459231,0.97975901,2997.1,2996.4,0.006]
[1768942459532,0.97975901,2997.2,2996.6,0.006]
[1768942460988,0.97975901,2997.2,2996.3,0.002]
[1768942461477,0.97975901,2997.0,2996.3,0.002]
[1768942461644,0.97975901,2996.9,2996.3,0.002]
[1768942462160,0.97975901,2996.8,2995.9,0.002]
[1768942462362,5.26226151,2996.9,2995.9,0.002]
[1768942462363,0.97975901,2996.6,2995.9,0.002]
[1768942462764,0.97975901,2996.6,2995.9,0.0003699]
[1768942463361,0.97975901,2996.5,2995.9,0.0003699]
[1768942464163,0.97975901,2996.4,2995.9,0.0003699]
[1768942464759,0.97975901,2996.4,2995.6,0.002]
[1768942464947,0.97975901,2996.4,2995.6,0.00036971]
[1768942465534,0.97975901,2996.4,2995.6,0.00636971]
[1768942467960,0.97975901,2996.4,2995.7,0.006]
[1768942468545,0.98075901,2996.6,2995.7,0.006]
[1768942468752,0.001,2996.6,2995.7,0.006]
[1768942468946,0.001,2996.6,2995.9,0.006]
[1768942469148,0.97975901,2997.0,2996.0,0.005]
[1768942469543,0.97975901,2997.2,2996.0,0.005]
[1768942469869,0.97975901,2997.2,2996.1,0.005]
[1768942470070,0.97975901,2997.2,2996.3,0.005]
[1768942470875,0.97975901,2997.4,2996.3,0.005]
[1768942471371,0.97975901,2997.4,2995.7,0.005]
[1768942471674,0.97975901,2997.0,2995.6,0.00536971]
[1768942471977,0.97975901,2996.8,2995.6,0.00536971]
[1768942472544,0.97975901,2996.8,2995.6,0.00036971]
[1768942473970,0.97975901,2996.6,2995.6,0.00036971]
[1768942474168,0.97975901,2996.4,2995.6,0.00036971]
[1768942475870,0.538,2996.3,2995.6,0.00036971]
[1768942476173,0.97975901,2996.2,2995.6,0.00036971]
[1768942477484,0.97975901,2996.2,2995.4,0.002]
[1768942477485,0.97975901,2996.1,2995.1,0.54]
[1768942477782,0.97975901,2995.9,2994.8,0.005]
[1768942478075,0.97975901,2995.8,2994.8,0.005]
[1768942478285,0.97975901,2995.6,2994.6,0.1789757]
[1768942478442,0.02978125,2995.1,2994.6,0.005]
[1768942479160,0.02978125,2995.1,2994.7,0.33443977]
[1768942479353,0.02978125,2995.1,2994.6,0.005]
[1768942479880,0.02978125,2995.1,2994.4,0.007]
[1768942480084,1.00954026,2995.1,2994.4,0.007]
[1768942480436,0.97975901,2996.8,2995.2,0.92547171]
[1768942480686,0.97975901,2997.3,2995.7,0.92547171]
[1768942480855,0.97975901,2997.1,2995.7,0.92547171]
[1768942481680,0.97975901,2997.1,2995.2,0.92547171]
[1768942481855,0.97975901,2996.5,2995.0,0.92547171]
[1768942482059,0.97975901,2996.3,2995.0,0.92547171]
[1768942482459,0.97975901,2996.3,2995.1,0.42644078]
[1768942482652,0.97975901,2996.2,2995.0,0.92547171]
[1768942484557,0.97975901,2996.2,2995.1,0.98475901]
[1768942484757,0.2335703,2996.9,2995.1,0.98475901]
[1768942484758,0.97685356,2996.5,2995.1,0.98475901]
[1768942485011,0.538,2996.4,2995.1,0.98475901]
[1768942485293,1.44220105,2996.4,2995.3,0.98475901]
[1768942485996,0.90420105,2996.3,2995.3,0.98475901]
[1768942489201,0.90420105,2996.3,2994.9,0.98475901]
[1768942489202,0.90420105,2996.2,2994.9,0.98475901]
[1768942489564,0.90420105,2996.2,2994.4,0.002]
[1768942489565,0.90420105,2996.0,2994.5,0.98475901]
[1768942489768,0.90420105,2995.8,2994.5,0.98475901]
[1768942489969,0.90420105,2995.6,2994.7,0.98475901]
[1768942490164,0.90420105,2995.6,2994.6,0.43263151]
[1768942490369,0.538,2995.7,2994.4,0.002]
[1768942490370,0.90420105,2995.4,2994.4,0.002]
[1768942490667,0.90420105,2995.4,2994.4,0.88661429]
[1768942490869,1.44220105,2995.5,2994.4,0.88661429]
[1768942491063,1.44220105,2995.5,2994.6,0.88461429]
[1768942491306,1.44220105,2995.5,2994.4,0.002]
[1768942491307,0.90420105,2995.4,2994.4,0.002]
[1768942491483,0.90420105,2995.4,2994.4,0.88661429]
[1768942493415,0.90420105,2995.3,2994.4,0.002]
[1768942493776,0.90420105,2995.3,2994.4,0.88661429]
[1768942493981,0.90420105,2995.3,2994.4,0.002]
[1768942495694,0.90420105,2995.1,2994.4,0.002]
[1768942495900,0.90420105,2995.1,2994.0,0.88461429]
[1768942498327,0.90420105,2995.1,2994.1,0.88461429]
[1768942499080,6.33,2995.6,2994.3,0.88461429]
[1768942499284,0.90420105,2995.9,2994.6,0.88461429]
[1768942499479,4.2421161,2995.9,2994.7,0.73921875]
[1768942499690,0.90420105,2995.7,2994.3,0.88461429]
[1768942499897,0.90420105,2995.5,2994.3,0.88461429]
[1768942500307,0.90420105,2995.5,2994.2,0.88461429]
[1768942500520,0.90420105,2995.5,2994.4,0.88461429]
[1768942500700,0.90420105,2995.5,2994.7,0.88461429]
[1768942501002,6.868,2995.8,2994.9,0.88461429]
[1768942501003,0.90420105,2995.7,2994.9,0.88461429]
[1768942501202,0.90420105,2995.7,2994.8,0.43930302]
[1768942501203,0.538,2995.8,2994.8,3.33906437]
[1768942501416,0.90420105,2996.0,2994.7,0.98683708]
[1768942501587,0.90420105,2996.0,2994.8,0.98683708]
[1768942501802,0.90420105,2995.9,2994.6,0.98683708]
[1768942502118,0.90420105,2995.8,2994.6,0.98683708]
[1768942502617,0.90420105,2995.8,2994.8,0.98683708]
[1768942503523,0.001,2995.5,2994.8,0.98683708]
[1768942504313,0.90420105,2996.0,2995.0,0.98683708]
[1768942504490,0.001,2996.1,2995.0,0.98683708]
[1768942504918,0.001,2996.1,2995.2,0.98683708]
[1768942505839,0.90520105,2996.1,2995.0,0.98683708]
[1768942507099,0.90520105,2996.1,2995.1,0.98683708]
[1768942507298,0.001,2996.1,2995.3,0.98683708]
[1768942507516,0.001,2996.1,2995.5,0.98683708]
[1768942507802,0.90420105,2997.1,2995.6,0.98683708]
[1768942508620,0.538,2997.2,2995.8,0.98683708]
[1768942508937,0.538,2997.2,2995.7,6.50757323]
[1768942508938,0.538,2997.2,2996.0,0.98683708]
[1768942509236,0.90420105,2997.4,2996.0,0.98683708]
[1768942509834,0.90420105,2997.4,2996.2,0.98683708]
[1768942510135,0.90420105,2997.4,2996.4,0.98683708]
[1768942510457,0.90420105,2998.0,2996.4,0.98683708]
[1768942511941,0.90420105,2998.0,2996.6,0.98683708]
[1768942512636,0.90420105,2998.0,2996.7,0.98683708]
[1768942512945,0.90420105,2998.0,2996.8,0.98683708]
[1768942513606,0.90420105,2997.9,2996.7,0.54]
[1768942513802,0.90420105,2997.9,2996.8,0.98683708]
[1768942514938,0.90420105,2997.9,2996.7,0.54]
[1768942515242,0.90420105,2997.9,2996.7,1.50492155]
[1768942515438,0.9013297,2997.8,2996.9,0.96492155]
[1768942515735,0.539,2998.2,2996.9,0.96492155]
[1768942515933,0.001,2998.2,2997.1,0.96492155]
[1768942516518,0.001,2997.7,2997.1,0.96492155]
[1768942517647,0.001,2998.2,2997.1,0.96492155]
[1768942517821,0.001,2998.2,2997.1,3.33646433]
[1768942518021,0.001,2998.2,2997.3,0.96492155]
[1768942518417,0.001,2998.2,2997.3,1.50492155]
[1768942518623,0.001,2998.2,2997.4,0.96492155]
[1768942520862,0.9023297,2998.2,2997.4,0.96492155]
[1768942522126,0.001,2998.2,2997.4,0.96492155]
[1768942522531,0.001,2998.2,2997.4,3.3362152]
[1768942522751,0.001,2998.2,2997.6,0.96492155]
[1768942524940,0.001,2998.2,2997.7,0.96492155]
[1768942525269,0.001,2998.7,2997.7,0.96492155]
[1768942525471,0.001,2998.7,2997.6,3.33600213]
[1768942525668,0.001,2998.7,2997.8,0.82289379]
[1768942525901,0.001,2998.7,2998.0,0.82289379]
[1768942526452,0.001,2998.7,2998.1,0.82289379]
[1768942527463,0.001,2998.7,2998.2,0.82289379]
[1768942527863,0.9013297,2999.1,2998.2,0.82289379]
[1768942528364,0.001,2999.2,2998.2,0.82289379]
[1768942528578,0.001,2999.4,2998.4,0.82289379]
[1768942528733,0.001,2999.4,2998.6,0.82289379]
[1768942529782,0.9013297,2999.3,2998.7,0.54]
[1768942530292,0.9013297,2999.3,2998.2,0.82289379]
[1768942530587,0.9013297,2999.3,2998.3,0.54]
[1768942530928,0.9013297,2999.3,2998.1,3.33540038]
[1768942531184,0.9013297,2999.3,2997.9,4.15855677]
[1768942531394,0.9013297,2999.2,2998.0,0.54]
[1768942531559,0.9013297,2999.0,2997.7,0.82711623]
[1768942531955,0.42354461,2999.1,2997.6,0.002]
[1768942531956,0.9013297,2998.8,2997.6,0.002]
[1768942533759,0.9013297,2998.8,2997.7,0.83565822]
[1768942533962,0.9013297,2998.8,2997.8,0.54]
[1768942534288,0.9013297,2998.8,2997.9,0.83565822]
[1768942536066,0.9013297,2998.8,2998.0,0.84400511]
[1768942536594,0.9013297,2998.8,2997.8,1.38810679]
[1768942536756,0.9013297,2998.8,2997.8,0.54]
[1768942538285,0.9013297,2998.8,2997.6,0.002]
[1768942538486,0.9013297,2998.8,2997.6,1.39816936]
[1768942538676,0.9013297,2998.8,2997.6,4.73414466]
[1768942540488,0.9013297,2998.8,2997.7,0.86404777]
[1768942540682,0.537,2998.9,2997.8,0.86404777]
[1768942540868,0.537,2998.9,2998.1,0.86404777]
[1768942540869,1.4383297,2998.9,2998.1,0.86404777]
[1768942541281,0.537,2998.9,2998.1,0.86404777]
[1768942541489,0.9013297,2998.8,2998.1,0.86404777]
[1768942541691,0.9029297,2998.8,2998.1,0.86404777]
[1768942542404,0.0016,2998.8,2998.1,0.86404777]
[1768942542600,0.0016,2998.8,2998.2,0.87174624]
[1768942543276,0.9029297,2998.8,2998.0,4.21300899]
[1768942543479,0.0016,2998.8,2998.2,0.87552929]
[1768942545687,0.0351,2998.8,2998.2,0.87552929]
[1768942545908,0.0351,2998.8,2998.2,1.3508328]
[1768942546303,0.0351,2998.8,2998.2,1.36910614]
[1768942546589,0.0351,2998.8,2998.2,0.89380263]
[1768942547987,0.0351,2998.8,2998.2,4.22909051]
[1768942548189,0.0351,2998.8,2998.3,0.89733233]
[1768942548417,0.0351,2998.8,2998.4,0.9008215]
[1768942549003,0.94130592,2999.2,2998.5,0.9016215]
[1768942549216,0.94130592,2999.2,2998.6,0.9008215]
[1768942550230,0.94130592,2999.2,2998.5,0.75800457]
[1768942550533,0.94130592,2999.2,2998.5,0.0008]
[1768942551635,0.94130592,2999.2,2998.5,0.91185037]
[1768942552702,0.001,2999.4,2998.7,0.96736357]
[1768942552902,0.94130592,2999.8,2998.9,0.96736357]
[1768942553133,0.94230592,3000.0,2998.9,0.96736357]
[1768942553500,0.001,3000.0,2999.1,0.96736357]
[1768942553701,0.76850592,3000.3,2999.3,0.96736357]
[1768942553938,0.76850592,3000.3,2999.4,0.96736357]
[1768942555633,0.76850592,3000.3,2999.5,0.96736357]
[1768942555834,0.001,3000.4,2999.5,0.96736357]
[1768942556747,0.001,3000.4,2999.6,0.96736357]
[1768942556946,0.001,3000.4,2999.8,0.96736357]
[1768942557158,0.001,3000.4,2999.9,0.96736357]
[1768942557722,1.47830592,3000.9,2999.9,0.96736357]
[1768942558853,0.94130592,3001.1,3000.1,0.96736357]
[1768942559064,0.94130592,3001.1,3000.2,0.96736357]
[1768942559262,0.94130592,3001.3,3000.4,0.96736357]
[1768942559976,0.94130592,3001.7,3000.4,0.96736357]
[1768942560856,0.94130592,3001.7,3000.4,0.54]
[1768942561597,0.94130592,3001.7,3000.2,3.33309078]
[1768942561598,0.94130592,3001.7,3000.2,0.96736357]
[1768942561753,0.94130592,3001.7,3000.4,0.96736357]
[1768942562800,0.001,3001.8,3000.6,0.96736357]
[1768942562801,0.94230592,3001.8,3000.6,0.96736357]
[1768942563301,0.94230592,3001.8,3000.5,6.66555574]
[1768942563302,0.94130592,3003.1,3000.8,0.96736357]
[1768942563452,0.94130592,3003.1,3000.7,7.02813376]
[1768942563453,0.536,3003.0,3001.0,0.96736357]
[1768942563657,0.94130592,3002.9,3001.0,0.96736357]
[1768942564908,0.94130592,3002.8,3001.2,0.96736357]
[1768942566392,0.94130592,3002.8,3001.4,0.96736357]
[1768942566553,0.94130592,3002.8,3001.5,0.54]
[1768942566753,0.94130592,3002.6,3001.5,1.50736357]
[1768942567168,0.94130592,3002.6,3001.6,0.96736357]
[1768942568094,0.94130592,3002.6,3001.5,0.54]
[1768942569163,0.94130592,3002.6,3001.5,1.50736357]
[1768942570196,0.94130592,3002.6,3001.6,0.96736357]
[1768942570498,0.94130592,3002.6,3001.1,0.96736357]
[1768942570677,0.94130592,3002.6,3001.1,4.29944244]
[1768942570861,3.3304045,3002.7,3001.2,3.76193448]
[1768942570862,0.94130592,3002.4,3001.2,3.76193448]
[1768942571068,0.94130592,3002.4,3001.3,3.33188854]
[1768942571271,0.94130592,3002.4,3001.3,4.29925211]
[1768942571472,0.94130592,3002.4,3001.5,0.96736357]
[1768942572207,0.94290592,3002.6,3001.5,0.96736357]
[1768942572770,0.94130592,3002.4,3001.5,0.81711416]
[1768942572969,0.94130592,3002.2,3000.7,4.29990646]
[1768942573212,0.536,3002.1,3000.8,0.96736357]
[1768942573505,0.94130592,3002.0,3000.9,0.96736357]
[1768942574009,0.94130592,3001.9,3000.9,0.96736357]
[1768942574169,0.94130592,3002.1,3000.9,0.96736357]
[1768942576123,1.58507323,3002.4,3001.1,0.97174693]
[1768942576290,1.04907323,3002.3,3001.1,0.97174693]
[1768942576475,1.04907323,3002.3,3001.3,0.97174693]
[1768942576675,1.04907323,3002.3,3001.2,0.76561921]
[1768942577112,1.05007323,3002.3,3001.2,0.76561921]
[1768942577410,1.05007323,3002.3,3001.3,0.97174693]
[1768942578096,1.05007323,3002.3,3001.2,0.76561921]
[1768942578285,1.05007323,3002.3,3001.2,0.002]
[1768942580377,1.04907323,3002.2,3001.2,0.002]
[1768942580870,1.04907323,3002.2,3001.2,0.97374693]
[1768942582576,1.58507323,3002.2,3001.2,0.97374693]
[1768942582898,1.04907323,3002.1,3001.2,0.97374693]
[1768942583102,1.04907323,3002.1,3001.2,4.30574457]
[1768942583326,1.04907323,3002.1,3001.3,0.97174693]
[1768942584183,1.04907323,3002.1,3001.2,0.76579484]
[1768942585308,1.04907323,3002.1,3001.2,0.002]
[1768942586233,1.04907323,3002.1,3001.2,0.97374693]
[1768942587199,1.04907323,3002.1,3001.2,0.002]
[1768942588299,1.04907323,3001.9,3001.2,0.002]
[1768942589955,0.001,3002.3,3001.6,0.97174693]
[1768942590093,0.001,3001.9,3001.7,0.01704924]
[1768942590299,0.001,3001.9,3001.6,0.97174693]
[1768942590533,0.001,3001.9,3001.7,0.01705522]
[1768942590732,0.001,3001.9,3001.6,0.97174693]
[1768942590934,0.88407323,3002.4,3001.7,0.01705466]
[1768942591230,0.88407323,3002.4,3001.7,0.98880159]
[1768942592150,0.88407323,3002.4,3001.5,0.97374693]
[1768942595004,0.0016,3002.1,3001.5,0.97374693]
[1768942595935,1.05067323,3002.1,3001.5,0.97374693]
[1768942596310,0.0016,3002.1,3001.5,0.97374693]
[1768942596530,1.05067323,3002.1,3001.5,0.97374693]
[1768942596715,1.05067323,3002.1,3001.5,1.40430774]
[1768942597441,1.04907323,3002.1,3001.5,1.40430774]
[1768942597653,0.88367323,3002.1,3001.5,0.97374693]
[1768942599358,0.88367323,3002.1,3001.2,0.0028]
[1768942599568,1.04907323,3001.9,3001.2,0.0028]
[1768942601818,1.04907323,3001.9,3001.1,0.002]
[1768942602026,1.04907323,3001.9,3000.9,0.0028]
[1768942602212,1.04907323,3001.7,3001.5,0.002]
[1768942602414,1.04907323,3001.7,3000.9,0.0028]
[1768942604023,1.04907323,3001.6,3000.9,0.0028]
[1768942604432,1.04907323,3001.6,3000.4,0.97174693]
[1768942605745,1.04907323,3001.6,2999.9,0.002]
[1768942605746,1.04907323,3001.6,3000.5,1.04354111]
[1768942606161,1.09889408,3001.4,3000.5,1.04354111]
[1768942606985,1.09889408,3001.4,3000.1,1.04354111]
[1768942607161,1.09889408,3001.4,3000.3,1.04354111]
[1768942607552,1.09889408,3001.2,3000.3,4.376536]
[1768942607751,1.09889408,3001.2,3000.4,1.04354111]
[1768942614264,1.09889408,3001.2,3000.7,0.002]
[1768942614461,0.001,3000.9,3000.2,1.04354111]
[1768942614673,0.001,3000.9,3000.4,1.04354111]
[1768942614979,1.09989408,3000.9,3000.4,1.04554111]
[1768942619066,0.001,3000.9,3000.4,1.04554111]
[1768942619277,1.09889408,3001.3,3000.7,5.25201386]
[1768942619484,0.0016,3001.6,3000.8,1.04354111]
[1768942619485,1.63489408,3001.2,3000.8,1.04354111]
[1768942619650,1.63489408,3001.2,3000.7,1.04354111]
[1768942620009,1.09889408,3001.1,3000.7,1.04354111]
[1768942620153,1.09889408,3001.1,3000.6,1.04354111]
[1768942620359,1.09889408,3001.1,3000.4,0.002]
[1768942621293,1.09889408,3001.1,3000.6,1.04354111]
[1768942622193,1.09889408,3001.1,3000.4,0.002]
[1768942622392,1.09889408,3001.1,3000.4,1.04554111]
[1768942624287,1.09889408,3001.1,3000.5,1.04354111]
[1768942625399,0.0016,3001.6,3001.0,1.04354111]
[1768942625602,0.0016,3001.6,3001.1,0.96951861]
[1768942625909,0.0016,3001.6,3001.2,1.04354111]
[1768942626076,1.09889408,3001.9,3001.3,1.04354111]
[1768942626606,1.09889408,3001.9,3001.2,5.25281386]
[1768942626607,1.09889408,3002.1,3001.5,1.04354111]
[1768942626901,1.09889408,3002.3,3001.7,1.04354111]
[1768942627774,1.09889408,3002.5,3001.9,1.04354111]
[1768942628185,1.09889408,3002.5,3001.7,1.67309661]
[1768942628499,1.09889408,3002.5,3001.7,1.04354111]
[1768942629785,1.09889408,3002.5,3001.9,1.04354111]
[1768942630296,0.536,3002.6,3001.9,1.04354111]
[1768942630795,1.63489408,3002.6,3001.9,1.04354111]
[1768942631694,1.09889408,3002.5,3001.9,1.04354111]
[1768942632494,1.09889408,3002.5,3001.5,1.04354111]
[1768942632804,1.09889408,3002.0,3001.2,0.0008]
[1768942633102,1.09889408,3001.8,3001.2,0.0008]
[1768942633301,1.09889408,3001.6,3001.2,0.0008]
[1768942633463,1.09889408,3001.4,3000.9,0.0008]
[1768942634812,1.09889408,3001.2,3000.7,0.002]
[1768942635033,0.536,3001.5,3000.7,0.002]
[1768942635034,1.09889408,3001.0,3000.7,0.002]
[1768942635301,1.09889408,3001.0,3000.4,0.002]
[1768942636773,1.043738,3001.2,3000.4,1.08248898]
[1768942637071,1.043738,3001.6,3000.4,1.08248898]
[1768942637405,1.579738,3001.6,3000.4,1.08248898]
[1768942637619,1.043738,3001.6,3000.5,1.08048898]
[1768942637769,1.579738,3001.6,3000.5,1.08048898]
[1768942637969,0.0338,3001.0,3000.5,1.08048898]
[1768942638194,0.0338,3001.0,3000.5,4.41316615]
[1768942638465,1.043738,3001.8,3000.7,1.08048898]
[1768942639007,3.33062711,3002.5,3000.7,1.08048898]
[1768942639008,0.536,3002.0,3000.7,1.08048898]
[1768942639311,1.043738,3001.9,3001.1,1.08048898]
[1768942640215,1.043738,3001.9,3001.0,0.002]
[1768942640572,1.043738,3001.8,3000.6,0.002]
[1768942640787,1.043738,3001.6,3000.6,0.002]
[1768942641112,1.579738,3001.6,3000.6,1.08248898]
[1768942641400,1.043738,3001.5,3000.6,1.08248898]
[1768942642374,1.043738,3001.5,3000.6,0.002]
[1768942642804,1.043738,3001.5,3000.6,1.08248898]
[1768942643184,0.536,3001.6,3000.6,1.08248898]
[1768942643400,1.043738,3001.7,3000.7,1.11381453]
[1768942643611,1.043738,3001.8,3000.7,1.08048898]
[1768942646597,1.043738,3001.8,3000.6,0.002]
[1768942646793,1.043738,3001.7,3000.6,0.002]
[1768942647001,1.043738,3001.5,3000.6,0.002]
[1768942647298,1.043738,3001.5,3000.4,0.002]
[1768942647790,1.043738,3001.3,3000.4,0.002]
[1768942647990,1.043738,3001.1,2999.9,0.002]
[1768942648496,1.043738,3001.1,2999.9,1.08248898]
[1768942648995,1.043738,3000.9,2999.9,1.08248898]
[1768942651031,0.536,3000.8,2999.9,1.08248898]
[1768942651248,1.579738,3000.8,2999.9,1.08248898]
[1768942651396,1.579738,3000.8,3000.1,0.002]
[1768942651591,1.579738,3000.8,3000.1,1.08248898]
[1768942653330,1.043738,3000.7,3000.1,0.002]
[1768942653798,0.536,3000.8,3000.1,0.002]
[1768942653999,1.043738,3000.7,3000.1,0.002]
[1768942657221,1.043738,3000.7,2999.9,0.002]